Cogmind - Beta 15 @@@ ROGUE MODE // 2025.05.11 @ 00:23:50 Player: Skysub Result: Destroyed by 6O-PVA(R) with Subdweller Laser Performance ------------- Evolutions (0) 0 Regions Visited (2) 400 Robots Destroyed (13) 65 Value Destroyed (201) 201 Prototype IDs (0) 0 Alien Tech Used (0) 0 Bonus (0) 0 TOTAL SCORE: 666 Bonus ------- None Cogmind --------- Core Integrity 0/250 Matter 300/300 Energy 13/125 System Corruption 0% Temperature Cool (6) Movement Core (200) Ox3 Location -10/Subcaves Parts ------- > --- POWER (1) -------- Light Ion Engine > --- PROPULSION (2) --- (None) > --- UTILITY (2) ------ Small Storage Unit Light Armor Plating > --- WEAPON (2) ------- Mining Laser > --- INVENTORY (8) ---- Wheel Wheel Large Storage Unit Sensor Array Core Shielding Peak State ------------ > --- POWER ------------ Light Ion Engine > --- PROPULSION ------- Light Treads Light Treads > --- UTILITY ---------- Small Storage Unit Improved Terrain Scanner > --- WEAPON ----------- Medium Laser Light Assault Rifle > --- INVENTORY -------- Light Ion Engine Wheel Wheel Mining Laser [Rating: 9] Favorites ----------- Power Ion Engine Engine Ion Engine Propulsion Light Treads Treads Light Treads Utility Small Storage Unit Device Improved Terrain Scanner Storage Small Storage Unit Protection Light Armor Plating Weapon Medium Laser Energy Gun Medium Laser Ballistic Gun Assault Rifle Special Weapon Mining Laser Build | -11 -10 -10 ------- Run | Yrd Mat Sub Slots Evolved . | . . . Power . | . . . Propulsion . | . . . Utility . | . . . Weapon . | . . . Parts Attached 13 | 7 4 2 Power 2 | 1 1 . Engine 2 | 1 1 . Core . | . . . Reactor . | . . . Propulsion 2 | 2 . . Treads 2 | 2 . . Leg . | . . . Wheel . | . . . Hover . | . . . Flight . | . . . Utility 3 | 2 . 1 Device 1 | 1 . . Storage 1 | 1 . . Processor . | . . . Hackware . | . . . Protection 1 | . . 1 Artifact . | . . . Weapon 6 | 2 3 1 Energy Gun 1 | 1 . . Energy Cannon . | . . . Ballistic Gun 3 | 1 2 . Ballistic Cannon . | . . . Launcher . | . . . Special Weapon 2 | . 1 1 Impact Weapon . | . . . Slashing Weapon . | . . . Piercing Weapon . | . . . Special Melee Weapon . | . . . Unidentified Prototypes . | . . . Parts Lost 7 | . 1 6 Power 1 | . . 1 Propulsion 2 | . . 2 Utility 1 | . . 1 Weapon 3 | . 1 2 Highest Loss Streak 6 | . 1 6 To Critical Strikes 1 | . . 1 Average Backups 6 | 2 7 7 Power . | . 1 . Propulsion 2 | 1 2 2 Utility 2 | . 3 3 Weapon . | . . . Tool/Special . | . . . Unused Backups 8 | . 3 5 Power 1 | . 1 . Propulsion 4 | . 2 2 Utility 3 | . . 3 Weapon . | . . . Tool/Special . | . . . Average Slot Usage (%) 98 | . 100 95 Engine 13 | . 14 13 Treads 27 | . 28 25 Device 13 | . 14 12 Storage 14 | . 14 14 Energy Gun 12 | . 11 12 Ballistic Gun 13 | . 14 12 Special Weapon 1 | . 2 1 Peak Build Rating 9 | 9 9 9 Average Rating 8 | 5 9 8 On Entrance 6 | . 9 9 Naked Turns . | . . . Heaviest Build 15 | 12 15 15 Greatest Support 40 | 40 40 40 Greatest Overweight (x) . | . . . Average Overweight (x) . | . . . Largest Inventory Capacity 8 | 8 8 8 Average Capacity 7 | 6 8 8 Most Carried 8 | 4 8 8 Average Carried 6 | 2 7 7 Final Capacity 8 | 8 8 8 Final Carried 8 | 4 8 5 Class Distribution -------------------- 100% | Mutant Dominant Class ---------------- Mutant | -10/Materials Mutant | -10/Subcaves Resources | -11 -10 -10 ----------- Run | Yrd Mat Sub Matter Collected 430 | 106 293 31 Remotely . | . . . Salvage Created 411 | 96 259 56 Parts 27 | 4 22 1 Haulers Intercepted 1 | . 1 . Recyclers Shooed 1 | 1 . . Parts Field Recycled . | . . . Retrieved Matter . | . . . Parts Self-Destructed . | . . . Prevented . | . . . Kills | -11 -10 -10 ------- Run | Yrd Mat Sub Combat Hostiles Destroyed 9 | . 8 1 Guns 9 | . 8 1 Classes Destroyed 7 | 2 4 1 Builder 1 | . 1 . Tunneler 1 | 1 . . Hauler 1 | . 1 . Recycler 1 | 1 . . Swarmer 6 | . 6 . Grunt 2 | . 2 . Subdweller 1 | . . 1 Best Kill Streak 4 | 1 4 1 Combat Bots Only 4 | . 4 1 Max Kills in Single Turn 2 | 1 2 1 Gunslinging 1 | . 1 . Exploded . | . . . Melee . | . . . Uniques/NPCs Destroyed . | . . . Combat | -11 -10 -10 -------- Run | Yrd Mat Sub Hostile Shots Fired 86 | . 60 26 Missed 13 | . 10 3 Hits 73 | . 50 23 Projectile 73 | . 50 23 Critical Strikes 2 | . . 2 Damage Taken 988 | . 468 520 Core 255 | . 83 172 Absorbed by Shields . | . . . Core Remaining (%) 100 | 100 . . Volleys Fired 55 | 6 37 12 Largest 2 | 2 2 2 Hottest 100 | 70 100 100 Shots Fired 96 | 12 70 14 Gun 87 | 12 67 8 Cannon . | . . . Launcher . | . . . Special 9 | . 3 6 Kinetic 46 | 6 34 6 Thermal 50 | 6 36 8 Explosive . | . . . Electromagnetic . | . . . Robot Hit Streak 11 | 5 4 11 Robot Miss Streak 6 | 2 6 2 Penetration Max . | . . . Secondary Targets 2 | . 2 . Max Gunslinging Chain 1 | . 1 . Shots Hit Robots 53 | 8 34 11 Core Hits 23 | 3 17 3 Critical Kills . | . . . Critical Parts Destroyed . | . . . Critical Strikes 4 | 1 2 1 Burn 4 | 1 2 1 Melee Attacks . | . . . Impact . | . . . Slashing . | . . . Piercing . | . . . Sneak Attacks . | . . . Combat Hostiles . | . . . Follow-up Attacks . | . . . Damage Inflicted 750 | 86 474 190 Guns 646 | 86 466 94 Cannons . | . . . Explosions . | . . . Melee . | . . . Ramming 8 | . 8 . Kinetic 320 | 23 216 81 Thermal 422 | 63 250 109 Explosive . | . . . Electromagnetic . | . . . Impact . | . . . Slashing . | . . . Piercing . | . . . Highest Corruption . | . . . Average Corruption . | . . . Corruption Purged . | . . . Corruption Blocked . | . . . Overload Shots . | . . . Overflow Damage . | . . . Projectiles . | . . . Explosions . | . . . Melee . | . . . Knockbacks . | . . . Impact . | . . . Kinetic . | . . . Secondary . | . . . Self-Inflicted Damage . | . . . Shots . | . . . Rammed 2 | . 2 . Targets Rammed 2 | . 2 . Kicked . | . . . Crushed . | . . . Highest Temperature 220 | 52 220 . Average Temperature 56 | 24 61 . Received Heat Transfer 228 | . 69 159 Effects 2 | . 2 . Interference 2 | . 2 . Siege Activations . | . . . Martial Activations . | . . . Shielding Activations . | . . . Robots Disrupted . | . . . Combat Hostiles . | . . . Robots Corrupted . | . . . Combat Hostiles . | . . . Parts Fried . | . . . Impact Corruptions . | . . . Robots Melted . | . . . Combat Hostiles . | . . . Parts Melted 4 | 1 3 . Heat Transferred 1458 | 259 888 311 Parts Sabotaged . | . . . Parts Stolen . | . . . Parts Stripped . | . . . Power Chain Reactions . | . . . Alert | -11 -10 -10 ------- Run | Yrd Mat Sub Maximum Alert Level . | . . . Low Security (%) 100 | 100 100 . Level 1 . | . . . Level 2 . | . . . Level 3 . | . . . Level 4 . | . . . Level 5 . | . . . High Security . | . . . Max Security . | . . . Peak Influence 134 | 5 134 . Initial . | . . . Average 24 | . 28 . Influence Increases 274 | 10 264 . Destroy 0b10 Robot/C 160 | . 160 . Destroy 0b10 Robot/NC 20 | 10 10 . Destroy Leader 32 | . 32 . Successful Hack 13 | . 13 . Destroy Structure 4 | . 4 . Partial Spotted 15 | . 15 . Lose Combat Pursuer 30 | . 30 . Influence Decreases 274 | 10 171 93 Entered New Map 45 | . . 45 Time Decay 228 | 10 170 48 Lost Part 1 | . 1 . Squads Dispatched 1 | . 1 . Investigation 1 | . 1 . Extermination . | . . . Reinforcement . | . . . Assault . | . . . Garrison . | . . . Intercept . | . . . Searches Triggered . | . . . Construction Impeded . | . . . Haulers Reinforced . | . . . Active Scanning Responses . | . . . Cargo Convoy Interrupts . | . . . Stealth | -11 -10 -10 --------- Run | Yrd Mat Sub Distress Signals . | . . . Communications Jammed . | . . . Distress Signals . | . . . Times Spotted 18 | . 16 2 Peak Tracking Total 5 | . 5 2 Tactical Retreats 2 | . 2 . Traps | -11 -10 -10 ------- Run | Yrd Mat Sub Traps Triggered 1 | . 1 . Indirectly . | . . . Trap Hack Attempts . | . . . Triggered . | . . . Disarmed . | . . . Reprogrammed . | . . . Reused . | . . . Traps Extracted . | . . . Installed . | . . . Triggered . | . . . Machines | -11 -10 -10 ---------- Run | Yrd Mat Sub Machines Disabled . | . . . Max in Single Turn . | . . . Machines Repaired . | . . . Machines Dismantled . | . . . Machines Sabotaged . | . . . Overloaded Fab Kills . | . . . Hacking | -11 -10 -10 --------- Run | Yrd Mat Sub Machines Accessed 6 | . 6 . Terminals 6 | . 6 . Fabricators . | . . . Repair Stations . | . . . Recycling Units . | . . . Scanalyzers . | . . . Garrison Access . | . . . Total Hacks 16 | . 16 . Successful 7 | . 7 . Failed 9 | . 9 . Catastrophic 1 | . 1 . Database Lockouts . | . . . Manual 11 | . 11 . Terminals 16 | . 16 . Fabricators . | . . . Repair Stations . | . . . Recycling Units . | . . . Scanalyzers . | . . . Garrison Access . | . . . Terminal Hacks 3 | . 3 . Terminal Index 1 | . 1 . Recall Investigation 1 | . 1 . Zone Layout 1 | . 1 . Fabricator Hacks . | . . . Repair Station Hacks . | . . . Recycling Unit Hacks . | . . . Scanalyzer . | . . . Garrison Access Hacks . | . . . Unauthorized Hacks 4 | . 4 . Terminals 4 | . 4 . Botnet 4 | . 4 . Fabricators . | . . . Repair Stations . | . . . Recycling Units . | . . . Scanalyzers . | . . . Garrison Access . | . . . Data Cores Recovered . | . . . Used . | . . . Hacking Detections 6 | . 6 . Full Trace Events . | . . . Feedback Events . | . . . Feedback Blocked . | . . . Robot Schematics Acquired . | . . . Robots Built . | . . . Authchips . | . . . Time . | . . . Total Robot Build Rating . | . . . Part Schematics Acquired . | . . . Parts Built . | . . . Authchips . | . . . Time . | . . . Total Part Build Rating . | . . . Parts Repaired . | . . . Time . | . . . Parts Recycled . | . . . Recycled Matter . | . . . Retrieved Matter . | . . . Retrieved Components . | . . . Parts Scanalyzed . | . . . Part Schematics Acquired . | . . . Parts Damaged . | . . . Bothacking | -11 -10 -10 ------------ Run | Yrd Mat Sub Used RIF Installer . | . . . Robots Hacked . | . . . Non-combat . | . . . Combat . | . . . Robot Hacks Applied . | . . . Relay Couplers Released . | . . . Fabnet Peak Effective % . | . . . Robots Rewired . | . . . Allies Hacked . | . . . Hacks Repelled . | . . . Allies | -11 -10 -10 -------- Run | Yrd Mat Sub Total Allies . | . . . Largest Group . | . . . Highest-Rated Group . | . . . Highest-Rated Ally . | . . . Total Orders . | . . . Ally Attacks . | . . . Total Damage . | . . . Kills . | . . . Allies Corrupted . | . . . Allies Melted . | . . . Intel | -11 -10 -10 ------- Run | Yrd Mat Sub Active Infowar (turns) 1106 | 11 799 296 Terrain 1106 | 11 799 296 Robot Analysis Total . | . . . Derelict Logs Recovered 3 | . . 3 Drone Launches . | . . . Drone Recoveries . | . . . Exploration | -11 -10 -10 ------------- Run | Yrd Mat Sub Turns Passed 1273 | 147 799 327 Spaces Moved 640 | 73 389 178 Core 2 | 2 . . Treads 638 | 71 389 178 Legs . | . . . Wheels . | . . . Hover . | . . . Flight . | . . . Fastest Speed 50 | 50 160 160 Average Speed 159 | 156 160 160 Slowest Speed 160 | 160 160 160 Overloaded Moves . | . . . Propulsion Burnouts . | . . . Robots Hopped . | . . . Potential Cave-ins . | . . . Cave-ins Triggered . | . . . Exploration Rate (%) 37 | 4 84 23 Regions Visited 2 Branch Regions 1 Pre-discovered Areas 1 | . . 1 Known Exits Taken . | . . . Unknown Exits Taken 2 | 1 1 . Scrap Searched . | . . . Spaces Dug 2 | . 2 . Terrain Destroyed 3 | . 3 . Melee . | . . . Projectile 3 | . 3 . AOE . | . . . Terrain Rammed . | . . . Walls Destroyed . | . . . Machines Disabled . | . . . Actions | -11 -10 -10 --------- Run | Yrd Mat Sub Total 782 | 92 493 197 Wait 54 | 2 48 4 Move 638 | 72 388 178 Hop . | . . . Pick Up 12 | 5 7 . Fast Attach 6 | 6 . . Attach 5 | 1 1 3 Detach . | . . . Swap 5 | . 5 . Drop 5 | . 5 . Fire 55 | 6 37 12 Melee . | . . . Ram . | . . . Kick . | . . . Crush 2 | . 2 . Escape Stasis . | . . . Rewire . | . . . Trap . | . . . Miscellaneous . | . . . Route ------- -11/Scrapyard -10/Materials (discovered 4 exits: [*Mat x2] / [*Min] / [*Sub]) -10/Subcaves (discovered 1 exit: Rec) History --------- Turn | Location | Event 13 | -11/Scrapyard | Discovered new exit (range 16) 148 | -11/Scrapyard | Entered Materials 229 | -10/Materials | Discovered new exit (range 16) 320 | -10/Materials | Build established: Mutant 362 | -10/Materials | Discovered new exit (range 10) 386 | -10/Materials | Discovered new exit (range 13) 933 | -10/Materials | Discovered new exit (range 10) 947 | -10/Materials | Entered Subcaves 962 | -10/Subcaves | Learned Materials emergency access door positions 972 | -10/Subcaves | Learned location of Zion (-6) 983 | -10/Subcaves | Identified exit to Recycling 1240 | -10/Subcaves | Core integrity fell below 50% 1265 | -10/Subcaves | Core integrity fell below 20% 1274 | -10/Subcaves | Destroyed by 6O-PVA(R) with Subdweller Laser Last Messages --------------- Acquired derelict log, extracted data. Data stored: Materials emergency access points. Acquired derelict log, extracted data. World map updated: -6/Zion. Acquired derelict log, extracted data. Loading 1 Recycling entrance... UI-G3E(R) suffers critical hit (Burn). Med. Laser destroyed. Critical hit (Destroy). Lgt. Treads destroyed. Ion Engine destroyed. Imp. Terrain Scanner destroyed. UI-G3E(R) destroyed. Assault Rifle destroyed. Acquired 11 matter. Subatomizers dissect the Sub. Power Source. Lgt. Treads destroyed. Acquired 10 matter. 6O-PVA(R) affixes Scrap Shield Fragment to Scrap Shield. Map ----- +----------------------------------------------------+ | ?????????????????????????????????????? ??? | | ???????????????????????????????????????? ?? | | ???????????????????????????????????????????# # | | ??????????????????????????????????????#?????# | | ????????????????????????????????????????????# | | ???????????????????????????????????????????# | | ??????????????????????????????????????????# | | ?????????????????????????????????????????# ## | | ?????????????????????????????????????????# ??## | | ?????????????????????????????????????????# ????? | | ?????????????????????????????????????????# ?????? | | ?????????????????????????????#???????????##??????# | | ???????????????????????????#????????????????????## | | ??????????????????????????????????????????#?????# | | ????????????????????????????????#????????#??#?### | | ???????????????????????????? ??? ?????? ??## ## | | ????????????????????????????"?????????? | | ???????????????????????##?? "?????????? | | ??????????????????????? "##""??????????? # | | ??????????????????? ???? """???????????? # | | ??????????????????????? "" ????????????? ??# | | ????????????????????????"" #???????????????????## | | ????????????????????????# #??????????#???????## | | ???????????? ?????????### #????? ???????????## | | ???????????????????????# * #?? ?????????????## | | ????????????????#??????#R@##???????????????## | | ???????????????????????# #????? ?????????# | | ??????????????????????## #??????? ???????## | | ???????????????#?????## ##"???????"??######## # | | ????????????????##"### #???????????# ###### | | ??????????????# "" #????>??????# #??? | | ?????????????# #####??????## #??#? | | ???????????? ####??## #??## | | ???????????? #### #### | | ???????????? ## ## ## | | ???????????? ??###### # # | | ?????????????##????????# #### | | ?????????????????????## ??# ## ### | | ??????????????????????## ??## ####### ##?? | | ???????????????????????######???###?????#######??? | | ???????????????????????????????#?????????????????? | | ???????????????????????#??#??????????????????????? | | ?????????????????????????????????????????????????# | | ????????????????????????????????????????????#????? | | ?????????????????????????????????????????????????? | | ??????????????????????#??????????????????#???????? | | ?????????????????????????????#???????????????#???? | | ??????????????????????????????????????#???????#??? | | ?????????????????????????????????????????????????? | | ???????????????????????????????????????#?????????? | +----------------------------------------------------+ Best States ------------- Heat Dissipation 25 Energy Generation 10 Energy Capacity 250 Matter Stores 300 Matter Capacity 300 Sight Range 16 Terrain Scan Range 16 Terrain Scan Density 10 Armor Coverage 150 Evasion (%) 40 Recoil Reduction 2 Item Schematics ----------------- None Robot Schematics ------------------ None Fabricated ------------ Nothing Repaired ---------- Nothing Alien Tech Used ----------------- None Achievements -------------- None Challenges ------------ None Game ------ Seed MatterAmuletMembrane Manual? 0 Play Time 00:08:29 Cumulative 72.1 hours Start 2025.05.11 @ 00:16:44 End 2025.05.11 @ 00:23:50 Sessions 1 Manual Loads 0 Difficulty Rogue Special Mode None Game No. 72 Rogue 72 Adventurer 0 Explorer 0 Win Type - Total 1 Types 1/0/0/0/0/0/0/0/0/0 Lore% 44 Gallery% 46 Achievement% 42 Wizard Run 0 Options --------- Layout 1 ASCII 0 Keyboard 1 Movement Numpad Keybinds 0 Fullscreen 1 Font 32/SmallcapsGlow Map View 50x35 Zoom Use 0% Tactical HUD 0 Map Filters NONE Filters NONE Steam 1 RUN: 6a3b5180-c13e-44ad-9d26-1c0ea7860dc7